bitfinex/quotes_ETHUSD_20220212
["timestamp","ask_amount","ask_price","bid_price","bid_amount"]
[1644668454976,1.45816788,2918.1,2917.9,0.00935634]
[1644668456022,1.45816788,2918.1,2917.4,0.00369153]
[1644668456222,1.45816788,2918.1,2917.9,0.0093564]
[1644668457223,1.45816788,2918.1,2917.4,0.00369153]
[1644668457523,1.45816788,2918.1,2917.9,0.0093564]
[1644668458326,1.45816788,2918.1,2917.4,0.00369153]
[1644668459877,1.45816788,2918.0,2917.4,0.00369153]
[1644668460177,0.01766844,2918.3,2917.4,0.00369153]
[1644668460379,1.458388,2918.2,2917.4,0.00369153]
[1644668460580,0.67931165,2918.0,2917.4,0.00369153]
[1644668461177,0.01766844,2918.3,2917.4,0.00369153]
[1644668461377,1.45835091,2918.2,2917.4,0.00369153]
[1644668461578,1.45835091,2918.2,2917.5,0.1713]
[1644668462178,0.61335429,2918.1,2917.7,0.00935122]
[1644668462379,1.45835091,2918.0,2917.7,0.00935122]
[1644668462779,0.61335429,2918.1,2917.7,0.00935122]
[1644668463022,0.01766844,2918.3,2917.7,0.00935122]
[1644668463223,1.45832591,2918.2,2917.4,0.00369153]
[1644668463428,1.45832591,2918.2,2917.8,0.00935116]
[1644668464223,1.75832591,2918.2,2917.8,0.63756876]
[1644668464427,0.3,2918.2,2917.8,0.6282176]
[1644668464628,0.3,2918.2,2917.9,0.00935105]
[1644668465028,0.01766844,2918.3,2917.9,0.00935105]
[1644668465528,0.01766844,2918.3,2917.8,0.6282176]
[1644668465729,0.01766844,2918.3,2918.0,0.00935094]
[1644668466781,0.01766844,2918.3,2917.8,0.6282176]
[1644668466972,0.01766844,2918.3,2918.0,0.00935089]
[1644668467872,0.01766844,2918.3,2917.8,0.9282176]
[1644668468273,0.01766844,2918.3,2918.0,0.00935089]
[1644668468672,0.01766844,2918.3,2917.7,0.1713]
[1644668468673,0.01870178,2917.9,2917.7,0.1713]
[1644668468872,0.01870178,2917.9,2917.6,0.03740917]
[1644668469072,0.01870178,2917.9,2917.5,0.6623]
[1644668469274,0.01870178,2917.9,2917.5,0.1713]
[1644668470523,1.45847884,2917.8,2917.6,0.00316545]
[1644668471525,1.45847884,2917.8,2917.5,0.1713]
[1644668471925,1.45847884,2917.8,2917.6,0.00935138]
[1644668472736,1.45847884,2917.8,2916.3,7.46]
[1644668472737,3.3093,2917.6,2916.3,7.46]
[1644668472933,3.3093,2917.6,2916.0,3.5]
[1644668472934,5.0,2917.4,2916.0,3.5]
[1644668473229,1.62977884,2917.3,2917.1,0.03741112]
[1644668473426,1.45847884,2917.2,2917.1,0.03741112]
[1644668473632,1.62977884,2917.2,2917.1,0.03741112]
[1644668473827,2.16116048,2917.2,2917.1,0.03741112]
[1644668474028,2.46116048,2917.2,2916.2,3.5]
[1644668474282,1.62977884,2917.1,2916.2,0.3]
[1644668474478,1.45847884,2917.0,2916.0,3.6713]
[1644668474675,1.45895549,2917.0,2916.0,0.4713]
[1644668474874,0.3,2917.0,2916.0,0.1713]
[1644668475077,0.55761141,2916.7,2916.0,0.79156322]
[1644668475275,0.85761141,2916.7,2916.0,0.79156322]
[1644668475480,0.85761141,2916.7,2916.4,0.00315439]
[1644668476283,0.85761141,2916.7,2915.7,0.97135]
[1644668476478,0.85761141,2916.7,2916.0,0.1714]
[1644668476678,0.85761141,2916.7,2916.4,0.00934728]
[1644668476893,3.3,2916.6,2915.6,5.31020278]
[1644668477083,3.3,2916.6,2915.1,3.42867]
[1644668477084,1.45920939,2916.5,2915.3,7.46]
[1644668477284,5.0,2916.2,2915.0,0.1713]
[1644668477480,2.3,2916.0,2914.8,3.2713]
[1644668477682,0.8402,2916.0,2914.8,3.2713]
[1644668477881,1.1402,2916.0,2914.7,9.42523]
[1644668478117,1.1402,2916.0,2914.7,9.17523]
[1644668478317,0.53364843,2915.3,2914.8,1.0]
[1644668478521,0.3,2916.0,2914.8,1.491]
[1644668478721,3.5,2916.5,2914.8,2.34868]
[1644668479026,3.5,2916.5,2914.9,0.1714]
[1644668479323,0.3,2916.5,2915.0,0.491]
[1644668479523,0.65236537,2915.9,2915.2,0.54026054]
[1644668479723,0.3,2915.9,2915.2,0.54026054]
[1644668479924,0.3,2915.9,2915.2,1.39780054]
[1644668480122,0.3,2915.9,2915.3,0.791]
[1644668480322,0.1713,2917.0,2915.4,0.00311634]
[1644668480525,0.1713,2917.0,2915.5,0.491]
[1644668480724,0.52156609,2916.5,2915.9,0.683248]
[1644668481327,0.00934972,2916.3,2915.9,0.0093513]
[1644668481969,0.00934972,2916.3,2915.9,0.5003513]
[1644668482368,0.3,2916.5,2915.9,0.491]
[1644668482567,4.2206,2917.5,2916.1,0.52446802]
[1644668482568,0.00934983,2916.2,2916.1,0.52446802]
[1644668483275,0.00934983,2916.2,2916.1,0.82446802]
[1644668483472,0.67245394,2916.8,2916.1,0.82446802]
[1644668483672,0.97245394,2916.8,2916.1,0.52446802]
[1644668483872,0.00934978,2916.3,2916.1,0.52446802]
[1644668484475,0.00934978,2916.3,2916.2,3.84574767]
[1644668484676,0.1713,2917.3,2916.2,3.88855954]
[1644668484877,4.2206,2917.5,2916.2,4.88855954]
[1644668484878,0.3,2916.6,2916.2,4.88855954]
[1644668485077,0.58978276,2917.4,2916.3,1.0]
[1644668485276,0.58978276,2917.4,2916.4,0.491]
[1644668485526,0.88978276,2917.4,2916.3,0.3]
[1644668485730,1.63024822,2917.3,2916.2,0.3]
[1644668485928,1.45894822,2917.2,2916.2,0.3]
[1644668486129,1.45894822,2917.2,2916.0,0.4714]
[1644668486130,0.1713,2917.1,2916.0,0.4714]
[1644668486328,1.46519091,2917.0,2916.0,0.1714]
[1644668486530,2.30685213,2916.9,2916.2,0.5085063]
[1644668486734,0.84790391,2916.9,2916.2,0.5085063]
[1644668487029,1.14790391,2916.9,2916.2,1.3657963]
[1644668487230,0.1713,2916.9,2916.2,1.6657963]
[1644668487429,0.00624269,2916.7,2916.2,1.6657963]
[1644668488032,0.00624269,2916.7,2916.2,0.8085063]
[1644668488230,0.00624269,2916.7,2916.2,0.5085063]
[1644668488431,0.63106829,2916.8,2916.2,0.5085063]
[1644668488633,0.00935476,2916.6,2916.3,0.00359064]
[1644668488934,0.00935476,2916.6,2916.1,0.00359064]
[1644668489578,0.93106829,2916.8,2916.1,0.00359064]
[1644668489975,0.00935487,2916.5,2916.0,0.29281872]
[1644668490174,0.00935487,2916.5,2916.1,0.00359073]
[1644668490775,0.57430628,2916.3,2916.1,0.00359073]
[1644668490978,0.00935492,2916.4,2916.1,0.00359073]
[1644668491481,0.30935492,2916.4,2916.1,0.00359073]
[1644668491679,1.63062063,2916.3,2915.9,0.00935682]
[1644668491881,0.1713,2916.3,2915.7,0.00359073]
[1644668492275,0.3,2916.3,2915.9,0.00312581]
[1644668492475,0.56385157,2916.2,2915.9,0.00312581]
[1644668492877,0.3,2916.2,2915.9,0.00312581]
[1644668493120,0.1713,2916.8,2915.7,0.00359073]
[1644668493320,0.00936284,2916.2,2915.9,0.00936393]
[1644668493923,0.66371873,2916.2,2915.9,0.00936393]
[1644668494326,0.95435589,2916.2,2915.6,0.78784884]
[1644668494532,0.96371873,2916.2,2915.9,0.00936393]
[1644668495227,0.30936284,2916.2,2915.9,0.00936393]
[1644668495426,3.269,2916.9,2916.0,3.3]
[1644668495633,1.45920685,2916.8,2916.1,1.0]
[1644668495829,0.00936284,2916.2,2916.1,1.0]
[1644668496428,0.00936284,2916.2,2916.1,0.62845859]
[1644668496632,5.13988844,2917.9,2916.1,0.62845859]
[1644668496633,0.84066541,2917.9,2916.2,3.3]
[1644668496879,1.45881437,2917.8,2916.5,6.142]
[1644668497080,1.45881437,2917.8,2916.6,4.79603]
[1644668497277,1.45881437,2917.8,2916.7,1.0]
[1644668497475,1.45881437,2917.8,2917.5,0.70666179]
[1644668497877,0.01870178,2917.9,2917.6,0.491]
[1644668498274,0.00623104,2917.8,2917.6,0.491]
[1644668499076,0.01870178,2917.9,2917.6,0.491]
[1644668499276,0.01870178,2917.9,2917.6,3.95524349]
[1644668499479,0.00623104,2917.8,2917.6,3.95524349]
[1644668499878,0.00623104,2917.8,2917.7,3.37965116]
[1644668500079,0.00623104,2917.8,2917.7,3.87065116]
[1644668500279,0.01870178,2917.9,2917.7,3.87065116]
[1644668500520,0.01870178,2917.9,2917.7,0.491]
[1644668500721,0.02806279,2917.9,2917.7,0.491]
[1644668501634,0.01870178,2917.9,2917.7,0.491]
[1644668501824,0.02806274,2917.9,2917.7,0.491]
[1644668502525,0.02806274,2917.9,2917.8,3.36451612]
[1644668502727,0.02806274,2917.9,2917.8,0.6623]
[1644668502728,0.01870178,2917.9,2917.8,0.6623]
[1644668502929,0.01870178,2917.9,2917.8,1.6623]
[1644668503226,0.02806274,2917.9,2917.8,0.491]
[1644668504027,0.01870178,2917.9,2917.8,0.491]
[1644668505876,0.01870178,2917.9,2917.8,3.86920829]
[1644668506076,0.01870178,2917.9,2917.8,0.491]
[1644668506277,0.01870178,2917.9,2917.8,1.791]
[1644668506477,0.01870178,2917.9,2917.8,0.791]
[1644668506678,0.01870178,2917.9,2917.8,4.17976146]
[1644668506877,0.01870178,2917.9,2917.8,5.17976146]
[1644668507278,1.78e-06,2917.9,2917.8,5.35106146]
[1644668508125,0.01766844,2918.3,2917.9,4.15659]
[1644668508322,0.01766844,2918.3,2918.0,5.34779297]
[1644668508521,0.01766844,2918.3,2918.1,0.1713]
[1644668508723,0.01766844,2918.3,2918.2,0.491]
[1644668508922,0.01766844,2918.3,2918.2,4.82562157]
[1644668509122,0.01766844,2918.3,2918.2,5.12562157]
[1644668509325,0.01766844,2918.3,2918.2,6.12562157]
[1644668510328,3.099e-05,2918.4,2918.3,3.3]
[1644668510533,0.02491987,2918.9,2918.7,0.85639]
[1644668510729,0.02491987,2918.9,2918.8,0.491]
[1644668511237,0.00381412,2919.8,2918.9,0.0249]
[1644668511433,0.00381412,2919.8,2919.0,0.55769646]
[1644668511635,0.001,2919.8,2919.7,0.58393724]
[1644668511883,0.00381412,2919.8,2919.5,0.491]
[1644668512081,0.001,2919.8,2919.5,0.491]
[1644668512280,1.4578424,2919.9,2919.5,0.491]
[1644668512481,0.001,2919.8,2919.5,0.491]
[1644668512982,1.4588424,2919.8,2919.5,0.491]
[1644668513181,0.001,2919.7,2919.5,0.491]
[1644668513587,1.4588424,2919.7,2919.5,0.491]
[1644668513784,0.001,2919.6,2919.5,0.491]
[1644668514385,0.00381412,2919.8,2919.5,0.491]
[1644668514585,0.44163857,2920.6,2919.5,0.491]
[1644668514586,1.46154982,2920.4,2919.5,0.491]
[1644668514884,1.4587357,2920.3,2919.5,0.491]
[1644668515085,0.00620595,2919.8,2919.5,0.491]
[1644668515290,0.00620595,2919.8,2919.6,0.54886614]
[1644668515526,0.00620595,2919.8,2919.7,0.491]
[1644668515927,0.00381412,2920.4,2919.7,0.491]
[1644668516428,0.0057911,2919.9,2919.7,3.98684745]
[1644668516730,0.0057911,2919.9,2919.8,4.77673342]
[1644668517030,0.0057911,2919.9,2919.8,5.26773342]
[1644668517230,0.00381412,2920.4,2919.8,5.26773342]
[1644668517431,0.00894924,2920.0,2919.8,5.26773342]
[1644668517630,0.00894924,2920.0,2919.9,3.47770132]
[1644668517836,0.00894924,2920.0,2919.9,4.47770132]
[1644668518030,0.00894924,2920.0,2919.9,5.61042544]
[1644668518230,0.00894924,2920.0,2919.9,2.13272412]
[1644668518457,0.00381412,2920.4,2919.9,1.13272412]
[1644668518631,0.00894913,2920.1,2919.9,1.13272412]
[1644668519032,0.00894913,2920.1,2919.9,4.50706535]
[1644668519297,0.00894913,2920.1,2920.0,4.41483333]
[1644668519492,0.00894913,2920.1,2920.0,4.90583333]
[1644668519692,0.00381412,2920.4,2920.0,5.20583333]
[1644668519891,0.00894903,2920.2,2920.0,5.20583333]
[1644668520090,0.00894903,2920.2,2920.0,1.791]
[1644668520291,0.00894903,2920.2,2920.0,4.17177502]
[1644668520791,0.00381412,2920.4,2920.1,1.0]
[1644668521091,0.00381412,2920.4,2920.1,1.491]
[1644668521092,0.0087392,2920.2,2920.1,1.491]
[1644668521292,0.0087392,2920.2,2920.1,0.491]
[1644668521893,0.0087392,2920.2,2920.1,4.97653962]
[1644668522091,0.00381412,2920.4,2920.1,0.491]
[1644668522293,0.00873914,2920.3,2920.2,0.3]
[1644668522691,0.00873914,2920.3,2920.1,1.491]
[1644668523131,0.00381412,2920.5,2920.1,1.491]
[1644668523324,0.00381412,2920.5,2920.1,0.491]
[1644668523525,0.00873909,2920.3,2920.1,0.491]
[1644668524325,0.00381412,2920.5,2920.1,1.491]
[1644668524529,0.00381412,2920.5,2920.2,3.44607592]
[1644668524728,0.74163857,2920.6,2920.2,3.44607592]
[1644668524729,0.00875309,2920.3,2920.2,4.35217592]
[1644668525532,0.00381412,2920.5,2920.2,4.35217592]
[1644668525743,0.3,2920.6,2920.3,3.791]
[1644668525937,0.03500689,2920.8,2920.3,3.791]
[1644668526138,0.001,2921.5,2920.4,4.15587]
[1644668526332,0.001,2921.5,2920.5,0.491]
[1644668526333,0.1711,2921.5,2920.5,0.491]
[1644668526533,0.1711,2921.7,2920.5,0.491]
[1644668526772,1.45715234,2921.6,2921.4,0.69765006]
[1644668526972,0.1711,2921.7,2921.4,0.69765006]
[1644668527172,0.1711,2921.9,2921.4,0.69765006]
[1644668527472,0.1711,2922.2,2921.4,0.69765006]
[1644668527671,0.1711,2922.3,2921.4,0.69765006]
[1644668527872,1.45707836,2922.2,2921.4,0.68910422]
[1644668528073,0.1711,2922.1,2921.4,1.18010422]
[1644668528278,1.46269365,2922.0,2921.4,1.48010422]
[1644668528474,1.62817836,2921.9,2921.4,1.78160422]
[1644668528872,1.45707836,2921.8,2921.4,1.78160422]
[1644668529376,0.00878344,2921.7,2921.4,1.78160422]
[1644668529977,0.00878344,2921.7,2921.4,4.88010422]
[1644668530376,0.3,2921.9,2921.4,4.88010422]
[1644668530624,0.0087835,2921.7,2921.4,4.88010422]
[1644668531630,0.1711,2922.3,2921.4,4.88010422]
[1644668531931,0.1711,2922.3,2921.6,0.67711331]
[1644668531932,0.00874956,2921.7,2921.6,0.67711331]
[1644668532228,1.12355056,2921.5,2921.4,3.81686577]
[1644668533227,1.12355056,2921.5,2921.4,4.11686577]
[1644668533434,1.12355056,2921.5,2921.4,4.48286577]
[1644668533630,1.12355056,2921.5,2921.4,7.86219621]
[1644668533829,0.44988271,2921.5,2921.4,7.86219621]
[1644668534037,0.1711,2922.5,2921.4,7.86219621]
[1644668534038,0.1711,2922.5,2921.7,0.85559]
[1644668534278,0.03499344,2922.0,2921.8,0.491]
[1644668534875,0.03499344,2922.0,2921.9,0.56636776]
[1644668535076,0.03499344,2922.0,2921.9,1.05736776]
[1644668535281,0.21145806,2922.9,2921.9,1.05736776]
[1644668535477,2.10747078,2922.8,2921.9,0.491]
[1644668535677,1.62780715,2922.7,2921.7,0.3]
[1644668535876,1.45680715,2922.6,2921.5,0.4711]
[1644668536082,0.1711,2922.5,2921.5,0.4711]
[1644668536278,0.1711,2922.5,2921.5,0.1711]
[1644668536477,0.1711,2922.5,2921.7,0.51593268]
[1644668536678,1.45680715,2922.4,2921.9,0.00325629]
[1644668537178,1.45680715,2922.3,2921.9,0.00325629]
[1644668537378,1.45680715,2922.2,2921.9,0.00325629]
[1644668537582,1.45680715,2922.1,2921.5,0.171]
[1644668537778,1.45680715,2922.5,2921.9,0.00325629]
[1644668538630,0.1711,2922.6,2921.9,0.00325629]
[1644668538631,0.65066363,2922.3,2921.9,0.00325629]
[1644668538822,1.45680715,2922.2,2921.4,3.62586577]
[1644668539022,1.62790715,2922.2,2921.9,0.00936606]
[1644668539223,1.45680715,2922.1,2921.9,0.00936606]
[1644668540027,1.45680715,2922.1,2921.4,3.62586577]
[1644668540230,1.46617186,2922.1,2921.9,0.00936564]
[1644668540429,1.45680715,2922.0,2921.9,0.00936564]
[1644668541035,0.00936471,2922.1,2921.4,3.32586577]
[1644668541036,0.00739977,2921.7,2921.4,3.32586577]
[1644668541432,1.45680715,2921.6,2921.4,3.32586577]
[1644668542286,1.62790715,2921.6,2921.4,3.32586577]
[1644668542490,1.62790715,2921.6,2921.4,0.76858834]
[1644668542491,7.10097227,2921.5,2921.4,0.76858834]
[1644668542685,7.10097227,2921.5,2920.9,0.25]
[1644668542686,3.3,2921.4,2920.9,0.25]
[1644668542889,6.45680715,2921.3,2920.0,3.1351]
[1644668543088,6.63171326,2921.2,2920.0,3.1351]
[1644668543287,1.45680715,2921.1,2920.0,3.1351]
[1644668543489,1.63171326,2921.1,2920.0,3.1351]
[1644668543691,0.56457496,2920.9,2920.0,3.1351]
[1644668543894,1.46061326,2920.8,2920.4,0.00936726]
[1644668544088,1.45680715,2920.8,2920.4,0.00936726]
[1644668544288,1.46061326,2920.8,2920.4,0.00936726]
[1644668544488,1.45680715,2920.7,2920.4,0.00936726]
[1644668544688,0.00380611,2921.1,2920.4,0.00936726]
[1644668544888,1.4611338,2921.1,2920.0,3.44880474]
[1644668545091,1.4611338,2921.1,2920.4,0.00936726]
[1644668546031,1.4611338,2921.1,2919.9,4.1351]
[1644668546231,1.4611338,2921.1,2920.6,0.00936703]
[1644668546831,0.63003513,2920.8,2920.6,0.00936703]
[1644668547032,1.45732769,2920.7,2920.6,0.00936703]
[1644668547231,1.45732769,2920.7,2919.7,7.6816]
[1644668547431,1.4611338,2920.6,2919.8,0.3]
[1644668547633,1.45732769,2920.5,2919.7,4.9437]
[1644668547834,0.00380611,2920.5,2919.7,1.3]
[1644668548033,1.45732769,2920.6,2919.7,1.3]
[1644668548234,1.45732769,2920.5,2919.7,1.3]
[1644668548435,1.4611338,2920.4,2919.7,1.3]
[1644668548635,0.00380611,2920.7,2919.7,1.3]
[1644668548835,0.00380611,2920.7,2920.0,0.0093677]
[1644668548836,0.00380611,2920.4,2920.0,0.0093677]
[1644668549041,1.46118566,2920.7,2920.0,0.0093677]
[1644668549676,0.00380611,2920.7,2919.9,0.3]
[1644668549876,1.45737955,2921.0,2920.2,0.00936748]
[1644668549877,0.1711,2920.9,2920.2,0.00936748]
[1644668550077,1.46118566,2920.8,2920.2,0.00936748]
[1644668550579,1.45737955,2920.7,2920.2,0.00936748]
[1644668550776,1.18941573,2920.9,2919.9,0.3]
[1644668550777,1.46118566,2920.6,2919.9,0.3]
[1644668550977,1.45737955,2920.5,2919.9,0.3]
[1644668551179,0.00380611,2920.5,2920.4,0.00936731]
[1644668551377,0.00380611,2920.8,2920.4,0.00936731]
[1644668551583,0.64424814,2920.9,2920.4,0.00936731]
[1644668551778,0.00380611,2920.8,2919.8,3.65840402]
[1644668552077,0.00380611,2920.8,2919.8,3.85519385]
[1644668552278,0.00380611,2920.8,2920.0,0.85604]
[1644668552477,0.00380611,2920.8,2920.2,0.85599]
[1644668552678,1.45735232,2920.8,2920.2,0.85599]
[1644668552877,1.45735232,2920.7,2920.1,5.83262196]
[1644668553127,0.00380611,2920.6,2920.2,0.57509261]
[1644668553327,1.46115843,2920.6,2920.2,0.87509261]
[1644668553530,1.45735232,2920.5,2920.3,0.1711]
[1644668553731,1.45735232,2920.9,2920.3,0.1711]
[1644668553928,0.64424814,2921.1,2920.3,0.1711]
[1644668553929,1.46115843,2920.8,2920.3,0.1711]
[1644668554133,1.45735232,2920.7,2920.3,0.1711]
[1644668554333,1.45735232,2920.7,2920.4,0.491]
[1644668554533,1.45712629,2920.6,2920.5,0.1711]
[1644668554732,0.64805425,2921.2,2920.5,0.6621]
[1644668554934,0.64805425,2921.2,2920.5,0.491]
[1644668555133,0.00380611,2921.2,2920.5,0.491]
[1644668555336,0.00380611,2921.2,2920.5,3.84526192]
[1644668555933,1.4609324,2921.2,2920.5,0.491]
[1644668556333,1.4609324,2921.2,2920.5,3.85774528]
[1644668557171,1.4609324,2921.2,2920.5,0.491]
[1644668557172,0.53607866,2921.0,2920.5,0.491]
[1644668557373,0.64424814,2920.8,2920.5,0.491]
[1644668557674,0.64424814,2920.8,2920.4,0.1711]
[1644668557874,0.81534814,2920.8,2920.4,0.1711]
[1644668558076,2.10137443,2920.7,2920.2,3.4]
[1644668558274,0.64424814,2920.3,2920.2,3.4]
[1644668558474,0.64424814,2920.4,2920.3,0.00936784]
[1644668558670,1.52245949,2920.4,2920.3,0.00936784]
[1644668558872,2.98002339,2920.4,2920.3,0.00936784]
[1644668559071,2.33577525,2920.4,2920.3,0.00936784]
[1644668559278,2.33577525,2920.4,2920.2,3.4]
[1644668559476,2.27951341,2920.3,2920.2,3.40936748]
[1644668559877,1.6286639,2920.3,2920.2,3.40936748]
[1644668560538,1.6286639,2920.3,2920.2,3.4]
[1644668560731,2.27951341,2920.3,2920.2,3.4]
[1644668560929,1.6286639,2920.3,2920.2,3.4]
[1644668561733,2.27951341,2920.3,2920.2,3.4]
[1644668561943,1.6286639,2920.3,2920.2,3.4]
[1644668562235,2.27945687,2920.3,2920.2,3.4]
[1644668563036,2.10835687,2920.3,2920.2,3.4]
[1644668564485,1.4575639,2920.3,2920.2,3.4]
[1644668564678,2.10835687,2920.3,2920.2,3.4]
[1644668564879,1.4575639,2920.3,2920.2,3.4]
[1644668565879,1.28635638,2920.3,2920.2,3.4]
[1644668567885,0.79279905,2920.8,2920.2,3.4]
[1644668568328,0.82189297,2920.7,2920.2,3.4]
[1644668568728,0.56600698,2920.3,2920.2,3.4]
[1644668571879,0.56600698,2920.3,2920.2,1.84531837]
[1644668575388,0.65079297,2920.7,2920.2,1.84531837]
[1644668576325,0.65079297,2920.7,2920.3,0.00936753]
[1644668576525,0.50651758,2920.6,2920.3,0.00936753]
[1644668577334,0.50651758,2920.6,2920.2,1.84531837]
[1644668577526,0.50651758,2920.6,2920.3,0.00936753]
[1644668578432,0.50651758,2920.6,2920.2,1.84531837]
[1644668578826,0.50651758,2920.6,2920.3,0.00936753]
[1644668579282,0.80651758,2920.6,2920.3,0.00936753]
[1644668579686,0.80651758,2920.6,2920.2,1.84531837]
[1644668579896,0.80651758,2920.6,2920.3,0.00936753]
[1644668580889,0.80651758,2920.6,2920.2,1.84531837]
[1644668581089,0.80651758,2920.6,2920.3,0.00936753]
[1644668581889,0.3,2920.6,2920.3,0.00936753]
[1644668582091,0.3,2920.6,2920.2,1.84531837]
[1644668582290,1.08899294,2920.8,2920.3,0.00936753]
[1644668583129,1.32278338,2920.7,2920.3,0.00936753]
[1644668583323,0.67199041,2920.7,2920.2,1.84531837]
[1644668583522,0.67199041,2920.7,2920.3,0.00936774]
[1644668583923,1.32278338,2920.7,2920.3,0.00936774]
[1644668584528,1.32278338,2920.7,2920.2,1.84531837]
[1644668584729,1.32278338,2920.7,2920.3,0.00936763]
[1644668585138,0.67199041,2920.7,2920.3,0.00936763]
[1644668585837,1.45727887,2920.6,2920.3,0.00936763]
[1644668586034,1.45727887,2920.5,2920.3,3.39625644]
[1644668586236,1.45727887,2920.7,2920.4,0.491]
[1644668586434,0.3,2920.5,2920.4,0.491]
[1644668586633,1.45712407,2920.5,2920.4,0.491]
[1644668586878,0.65079297,2921.0,2920.4,3.98054183]
[1644668587082,1.45712407,2920.9,2920.4,4.8800829]
[1644668587279,0.00380611,2921.0,2920.5,1.0]
[1644668587280,1.45712407,2920.8,2920.5,1.0]
[1644668587477,1.45712407,2920.7,2920.6,3.45524373]
[1644668587682,1.45712407,2920.7,2920.5,0.491]
[1644668587881,1.45712407,2920.6,2920.5,0.491]
[1644668588079,0.65459908,2921.1,2920.5,0.491]
[1644668588278,2.11172315,2921.1,2920.5,0.491]
[1644668588479,1.45712407,2921.0,2920.5,0.491]
[1644668588778,1.45712407,2920.9,2920.5,0.491]
[1644668588978,1.45712407,2920.8,2920.5,0.491]
[1644668589179,1.45712407,2920.7,2920.5,0.491]
[1644668589381,1.45712407,2920.6,2920.5,0.491]
[1644668589583,1.45712407,2921.0,2920.5,0.491]
[1644668589782,1.45712407,2921.0,2920.5,0.791]
[1644668590187,0.30380611,2921.1,2920.5,0.491]
[1644668590382,0.00380611,2921.1,2920.5,0.491]
[1644668591629,0.65459908,2921.1,2920.5,0.491]
[1644668592227,0.00380611,2921.1,2920.5,0.491]
[1644668592431,0.00380611,2921.1,2920.5,3.87818097]
[1644668592635,0.00380611,2921.1,2920.5,4.17818097]
[1644668592838,0.00380611,2921.1,2920.6,2.02703]
[1644668593033,0.00380611,2921.1,2920.7,4.4465566]
[1644668593233,0.30380611,2921.1,2920.7,4.7465566]
[1644668593435,0.3,2921.1,2920.8,1.85582]
[1644668593647,0.3,2921.1,2920.9,0.6621]
[1644668593833,0.00380611,2921.2,2920.9,2.3437]
[1644668594147,0.1711,2921.3,2920.9,2.6437]
[1644668594379,0.17723041,2921.3,2921.0,1.38452014]
[1644668594582,0.17723041,2921.3,2921.1,0.6621]
[1644668594784,0.17723041,2921.3,2920.8,0.1711]
[1644668594785,0.20735072,2921.0,2920.8,0.1711]
[1644668594982,0.20735072,2921.0,2920.9,0.491]
[1644668595183,0.20735072,2921.0,2920.6,4.9213]
[1644668595491,0.20735072,2921.0,2920.7,0.491]
[1644668595683,0.20735072,2921.0,2920.8,0.491]
[1644668595882,0.20735072,2921.0,2920.9,0.491]
[1644668597085,0.00937021,2921.3,2920.9,0.491]
[1644668597685,0.00380611,2921.5,2920.9,0.491]
[1644668597885,0.00937053,2921.3,2920.9,0.491]
[1644668598631,0.00937053,2921.3,2920.4,1.1699]
[1644668598632,0.65079297,2921.2,2920.4,1.1699]
[1644668598826,0.65079297,2921.2,2920.3,0.00937387]
[1644668598827,1.12189297,2921.2,2920.3,0.00937387]
[1644668599027,1.12189297,2921.2,2920.2,4.1624]
[1644668599227,0.95079297,2921.2,2920.3,0.00937387]
[1644668599430,0.55015874,2921.1,2920.3,3.48275115]
[1644668599630,0.8312635,2921.3,2920.3,6.88275115]
[1644668599833,1.1312635,2921.3,2920.3,3.40937387]
[1644668600031,0.4711,2921.3,2920.3,3.4]
[1644668600233,0.1804699,2921.3,2920.3,3.40937324]
[1644668600640,0.1804699,2921.3,2920.4,1.0]
[1644668600832,0.1804699,2921.3,2920.3,3.40937324]
[1644668600833,0.60184928,2921.1,2920.3,3.40937324]
[1644668601233,0.90184928,2921.1,2920.3,3.4]
[1644668601632,0.90184928,2921.1,2920.3,3.40937303]
[1644668602275,0.90184928,2921.1,2920.4,0.85592]
[1644668602477,0.3,2921.1,2920.4,1.34692]
[1644668602879,0.95079297,2921.2,2920.4,1.34692]
[1644668603291,0.65079297,2921.0,2920.3,3.40937303]
[1644668603484,0.65079297,2920.8,2920.3,3.40937303]
[1644668603682,0.65079297,2920.8,2920.3,3.4]
[1644668603883,3.99867539,2920.7,2920.3,3.4]
[1644668604082,3.52734375,2920.6,2920.3,3.40937293]
[1644668604295,0.1711,2920.5,2920.3,3.40937293]
[1644668604481,0.82189297,2920.5,2920.3,3.40937293]
[1644668604682,0.65079297,2920.4,2920.3,3.40937293]
[1644668604883,0.82189297,2920.4,2920.3,3.4]
[1644668605081,1.12189297,2920.4,2920.3,3.4]
[1644668605281,1.12189297,2920.4,2920.3,3.40892139]
[1644668605937,0.4711,2920.4,2920.3,3.40892139]
[1644668606132,0.4711,2920.4,2920.3,3.4]
[1644668609292,0.3,2920.4,2920.3,3.4]
[1644668609680,0.1711,2921.2,2920.3,3.4]
[1644668610081,4.05366327,2921.3,2920.3,3.4]
[1644668610279,0.63434475,2921.2,2920.3,3.4]
[1644668610485,0.1711,2921.1,2920.3,3.4]
[1644668610683,0.21530463,2921.3,2920.4,0.491]
[1644668610882,0.1711,2921.3,2920.4,0.491]
[1644668611280,0.2153082,2921.3,2920.4,0.491]
[1644668611482,0.62859076,2921.1,2920.4,0.491]
[1644668611883,0.62859076,2921.1,2920.3,3.40884477]
[1644668612083,0.62859076,2921.1,2920.3,3.4]
[1644668612284,2.10941132,2921.0,2920.3,3.4]
[1644668612484,1.45722074,2920.9,2920.3,3.40885008]
[1644668612684,1.45722074,2920.8,2920.3,3.40885008]
[1644668613034,1.45722074,2920.7,2920.3,3.40885008]
[1644668613229,1.45722074,2920.6,2920.3,3.40885008]
[1644668613429,1.45722074,2920.5,2920.3,3.4]
[1644668613634,1.45722074,2920.4,2920.3,3.40884966]
[1644668613829,1.75722074,2920.4,2920.3,3.40884966]
[1644668614432,1.75722074,2920.4,2920.3,3.4]
[1644668616036,0.3,2920.4,2920.3,3.891]
[1644668616245,0.65219058,2920.9,2920.3,1.84563553]
[1644668616438,3.5,2921.1,2920.3,1.84563553]
[1644668616439,0.65219058,2920.8,2920.3,1.84563553]
[1644668616640,0.65219058,2920.7,2920.3,1.84563553]
[1644668616876,2.10940727,2920.6,2920.3,1.84563553]
[1644668617276,0.50342992,2920.4,2920.3,1.85448483]
[1644668617476,1.96064661,2920.4,2920.3,1.85448483]
[1644668617678,2.26064661,2920.4,2920.3,1.85448483]